[Event "Titled Tuesday Blitz November 14 Late 2023"]
[White "Ahmad, Khagan"]
[Black "BardArtem"]
[WhiteFideId "13431552"]
[WhiteElo "2657"]
[BlackElo "2832"]
[Result "0-1"]
[Round "9"]
[TimeControl "180+1"]
[Date "2023.11.14"]
[WhiteClock "0:00:00"]
[BlackClock "0:00:05"]
[Board "17"]

1. Nf3 {[%clk 0:02:56]}  d5 {[%clk 0:02:59]} 2. d4 {[%clk 0:02:55]}  Nf6 {[%clk 0:02:59]} 3. c4 {[%clk 0:02:55]}  c6 {[%clk 0:03:00]} 4. Nc3 {[%clk 0:02:55]}  dxc4 {[%clk 0:03:00]} 5. a4 {[%clk 0:02:52]}  e6 {[%clk 0:03:00]} 6. e3 {[%clk 0:02:43]}  c5 {[%clk 0:02:59]} 7. Bxc4 {[%clk 0:02:42]}  Nc6 {[%clk 0:02:59]} 8. O-O {[%clk 0:02:42]}  cxd4 {[%clk 0:03:00]} 9. exd4 {[%clk 0:02:43]}  Be7 {[%clk 0:03:00]} 10. Bg5 {[%clk 0:02:29]}  O-O {[%clk 0:02:59]} 11. Re1 {[%clk 0:02:29]}  h6 {[%clk 0:02:59]} 12. Bh4 {[%clk 0:02:30]}  Nb4 {[%clk 0:02:59]} 13. Ne5 {[%clk 0:02:27]}  b6 {[%clk 0:02:54]} 14. Qf3 {[%clk 0:02:25]}  Rb8 {[%clk 0:02:47]} 15. Rad1 {[%clk 0:02:22]}  Bb7 {[%clk 0:02:46]} 16. Qe2 {[%clk 0:02:06]}  Rc8 {[%clk 0:02:41]} 17. Nxf7 {[%clk 0:01:56]}  Rxf7 {[%clk 0:02:42]} 18. Bxe6 {[%clk 0:01:56]}  Rc7 {[%clk 0:02:23]} 19. Nb5 {[%clk 0:01:32]}  Bd5 {[%clk 0:01:48]} 20. Nxc7 {[%clk 0:01:21]}  Qxc7 {[%clk 0:01:49]} 21. Bxf7+ {[%clk 0:01:21]}  Kxf7 {[%clk 0:01:46]} 22. Bxf6 {[%clk 0:01:20]}  Kxf6 {[%clk 0:01:34]} 23. Qh5 {[%clk 0:01:11]}  Bd6 {[%clk 0:01:01]} 24. Rc1 {[%clk 0:00:38]}  Qf7 {[%clk 0:00:59]} 25. Qxf7+ {[%clk 0:00:28]}  Kxf7 {[%clk 0:01:00]} 26. Rc8 {[%clk 0:00:27]}  Nc6 {[%clk 0:00:47]} 27. h3 {[%clk 0:00:14]}  g5 {[%clk 0:00:17]} 28. f3 {[%clk 0:00:06]}  a5 {[%clk 0:00:17]} 29. Rc1 {[%clk 0:00:06]}  Nxd4 {[%clk 0:00:16]} 30. Rd1 {[%clk 0:00:07]}  Bc5 {[%clk 0:00:15]} 31. Kh1 {[%clk 0:00:07]}  Be6 {[%clk 0:00:14]} 32. Rc7+ {[%clk 0:00:06]}  Kf6 {[%clk 0:00:14]} 33. Re1 {[%clk 0:00:07]}  h5 {[%clk 0:00:11]} 34. Rh7 {[%clk 0:00:03]}  Nf5 {[%clk 0:00:10]} 35. Kh2 {[%clk 0:00:03]}  Bd6+ {[%clk 0:00:08]} 36. Kg1 {[%clk 0:00:03]}  Bc5+ {[%clk 0:00:07]} 37. Kh2 {[%clk 0:00:03]}  h4 {[%clk 0:00:08]} 38. Rh8 {[%clk 0:00:02]}  Bd6+ {[%clk 0:00:08]} 39. Kg1 {[%clk 0:00:03]}  Bb4 {[%clk 0:00:08]} 40. Re2 {[%clk 0:00:00]}  Bc4 {[%clk 0:00:05]} 0-1


[Site "https://www.chess.com"]

[Event "Titled Tuesday Blitz November 14 Late 2023"]
[White "Fernandez Reyes, Lisandro"]
[Black "Rohan, Ahuja"]
[WhiteFideId "3504190"]
[BlackFideId "5090598"]
[WhiteElo "2599"]
[BlackElo "2708"]
[Result "0-1"]
[Round "9"]
[TimeControl "180+1"]
[Date "2023.11.14"]
[WhiteClock "0:00:28"]
[BlackClock "0:00:17"]
[Board "21"]

1. e4 {[%clk 0:03:00]}  e5 {[%clk 0:02:56]} 2. Nf3 {[%clk 0:03:00]}  Nc6 {[%clk 0:02:57]} 3. Bc4 {[%clk 0:03:00]}  Bc5 {[%clk 0:02:56]} 4. d4 {[%clk 0:03:00]}  Bxd4 {[%clk 0:02:55]} 5. Nxd4 {[%clk 0:03:00]}  Nxd4 {[%clk 0:02:56]} 6. Be3 {[%clk 0:02:59]}  Ne6 {[%clk 0:02:39]} 7. Bxe6 {[%clk 0:02:58]}  dxe6 {[%clk 0:02:36]} 8. Qxd8+ {[%clk 0:02:58]}  Kxd8 {[%clk 0:02:36]} 9. Nc3 {[%clk 0:02:55]}  a6 {[%clk 0:02:30]} 10. O-O-O+ {[%clk 0:02:56]}  Ke8 {[%clk 0:02:30]} 11. f4 {[%clk 0:02:54]}  Ne7 {[%clk 0:01:46]} 12. fxe5 {[%clk 0:02:53]}  Bd7 {[%clk 0:01:46]} 13. Rd2 {[%clk 0:02:48]}  Bc6 {[%clk 0:01:10]} 14. Rhd1 {[%clk 0:02:45]}  h6 {[%clk 0:01:11]} 15. Bf4 {[%clk 0:02:38]}  Ng6 {[%clk 0:01:09]} 16. Bg3 {[%clk 0:02:37]}  Ke7 {[%clk 0:01:08]} 17. h4 {[%clk 0:02:33]}  h5 {[%clk 0:01:08]} 18. Rf2 {[%clk 0:02:29]}  Rhd8 {[%clk 0:00:59]} 19. Rdf1 {[%clk 0:02:29]}  Be8 {[%clk 0:01:00]} 20. Ne2 {[%clk 0:02:24]}  Kf8 {[%clk 0:00:49]} 21. c3 {[%clk 0:02:18]}  Kg8 {[%clk 0:00:49]} 22. Nd4 {[%clk 0:02:18]}  Rd7 {[%clk 0:00:42]} 23. Nf3 {[%clk 0:02:05]}  Rad8 {[%clk 0:00:32]} 24. Rd2 {[%clk 0:02:01]}  Rxd2 {[%clk 0:00:31]} 25. Nxd2 {[%clk 0:02:01]}  Bb5 {[%clk 0:00:31]} 26. c4 {[%clk 0:01:59]}  Bc6 {[%clk 0:00:31]} 27. b3 {[%clk 0:01:59]}  Nf8 {[%clk 0:00:27]} 28. Kc2 {[%clk 0:01:45]}  Nd7 {[%clk 0:00:27]} 29. b4 {[%clk 0:01:41]}  b6 {[%clk 0:00:23]} 30. Rf3 {[%clk 0:01:36]}  a5 {[%clk 0:00:22]} 31. b5 {[%clk 0:01:32]}  Bb7 {[%clk 0:00:21]} 32. Rd3 {[%clk 0:01:33]}  Kf8 {[%clk 0:00:20]} 33. Bf4 {[%clk 0:01:29]}  Ke8 {[%clk 0:00:20]} 34. Kc3 {[%clk 0:01:29]}  Nc5 {[%clk 0:00:19]} 35. Rxd8+ {[%clk 0:01:28]}  Kxd8 {[%clk 0:00:20]} 36. Kd4 {[%clk 0:01:28]}  Kd7 {[%clk 0:00:19]} 37. Be3 {[%clk 0:01:24]}  Ke7 {[%clk 0:00:17]} 38. g3 {[%clk 0:01:16]}  Ke8 {[%clk 0:00:17]} 39. Bf2 {[%clk 0:01:14]}  Ke7 {[%clk 0:00:15]} 40. Ke3 {[%clk 0:01:15]}  Kd7 {[%clk 0:00:14]} 41. Kf4 {[%clk 0:01:15]}  Nd3+ {[%clk 0:00:14]} 42. Ke3 {[%clk 0:01:14]}  Nxe5 {[%clk 0:00:15]} 43. Bg1 {[%clk 0:01:06]}  f6 {[%clk 0:00:15]} 44. Kd4 {[%clk 0:01:03]}  c5+ {[%clk 0:00:12]} 45. bxc6+ {[%clk 0:01:02]}  Nxc6+ {[%clk 0:00:12]} 46. Kc3 {[%clk 0:01:01]}  Kc7 {[%clk 0:00:12]} 47. c5 {[%clk 0:01:01]}  b5 {[%clk 0:00:13]} 48. Nb3 {[%clk 0:00:59]}  b4+ {[%clk 0:00:13]} 49. Kc2 {[%clk 0:00:54]}  a4 {[%clk 0:00:12]} 50. Nd2 {[%clk 0:00:52]}  Ne5 {[%clk 0:00:10]} 51. Bd4 {[%clk 0:00:50]}  Nd7 {[%clk 0:00:11]} 52. a3 {[%clk 0:00:39]}  bxa3 {[%clk 0:00:10]} 53. Nc4 {[%clk 0:00:37]}  Bxe4+ {[%clk 0:00:09]} 54. Kc3 {[%clk 0:00:36]}  a2 {[%clk 0:00:06]} 55. Kb4 {[%clk 0:00:37]}  Bd5 {[%clk 0:00:06]} 56. Na5 {[%clk 0:00:34]}  Nb8 {[%clk 0:00:06]} 57. Kxa4 {[%clk 0:00:30]}  Nc6 {[%clk 0:00:06]} 58. Nxc6 {[%clk 0:00:29]}  Kxc6 {[%clk 0:00:07]} 59. Kb4 {[%clk 0:00:29]}  e5 {[%clk 0:00:08]} 60. Ba1 {[%clk 0:00:29]}  Be6 {[%clk 0:00:08]} 61. Bb2 {[%clk 0:00:28]}  Kd5 {[%clk 0:00:08]} 62. Kb5 {[%clk 0:00:27]}  Ke4 {[%clk 0:00:07]} 63. c6 {[%clk 0:00:25]}  Kf3 {[%clk 0:00:08]} 64. Kc5 {[%clk 0:00:25]}  Kxg3 {[%clk 0:00:08]} 65. Kd6 {[%clk 0:00:25]}  Bg4 {[%clk 0:00:08]} 66. Ke7 {[%clk 0:00:23]}  e4 {[%clk 0:00:09]} 67. c7 {[%clk 0:00:21]}  e3 {[%clk 0:00:07]} 68. Kf8 {[%clk 0:00:20]}  e2 {[%clk 0:00:05]} 69. Bc3 {[%clk 0:00:20]}  a1=Q {[%clk 0:00:05]} 70. Bxa1 {[%clk 0:00:20]}  e1=Q {[%clk 0:00:06]} 71. Bd4 {[%clk 0:00:20]}  Qe6 {[%clk 0:00:06]} 72. Kxg7 {[%clk 0:00:20]}  Qc8 {[%clk 0:00:06]} 73. Kxf6 {[%clk 0:00:19]}  Qxc7 {[%clk 0:00:03]} 74. Be5+ {[%clk 0:00:19]}  Qxe5+ {[%clk 0:00:04]} 75. Kxe5 {[%clk 0:00:20]}  Kxh4 {[%clk 0:00:05]} 76. Kf4 {[%clk 0:00:20]}  Kh3 {[%clk 0:00:06]} 77. Ke3 {[%clk 0:00:21]}  Kg2 {[%clk 0:00:06]} 78. Kf4 {[%clk 0:00:21]}  h4 {[%clk 0:00:05]} 79. Kxg4 {[%clk 0:00:21]}  h3 {[%clk 0:00:06]} 80. Kg5 {[%clk 0:00:21]}  h2 {[%clk 0:00:07]} 81. Kf4 {[%clk 0:00:22]}  h1=Q {[%clk 0:00:08]} 82. Ke4 {[%clk 0:00:22]}  Qh3 {[%clk 0:00:09]} 83. Kf4 {[%clk 0:00:22]}  Qg3+ {[%clk 0:00:10]} 84. Kf5 {[%clk 0:00:23]}  Qf3+ {[%clk 0:00:11]} 85. Ke6 {[%clk 0:00:23]}  Kg3 {[%clk 0:00:12]} 86. Ke7 {[%clk 0:00:23]}  Kg4 {[%clk 0:00:12]} 87. Kd8 {[%clk 0:00:24]}  Kg5 {[%clk 0:00:13]} 88. Kc7 {[%clk 0:00:24]}  Qf6 {[%clk 0:00:14]} 89. Kb8 {[%clk 0:00:25]}  Qe7 {[%clk 0:00:14]} 90. Ka8 {[%clk 0:00:26]}  Kf5 {[%clk 0:00:15]} 91. Kb8 {[%clk 0:00:26]}  Ke5 {[%clk 0:00:15]} 92. Ka8 {[%clk 0:00:27]}  Kd5 {[%clk 0:00:16]} 93. Kb8 {[%clk 0:00:27]}  Kc6 {[%clk 0:00:17]} 94. Ka8 {[%clk 0:00:28]}  Qb7# {[%clk 0:00:17]} 0-1


[Site "https://www.chess.com"]

[Event "Titled Tuesday Blitz November 14 Late 2023"]
[White "Weimarraner"]
[Black "Bjelobrk, Igor"]
[BlackFideId "4300726"]
[WhiteElo "2558"]
[BlackElo "2681"]
[Result "0-1"]
[Round "9"]
[TimeControl "180+1"]
[Date "2023.11.14"]
[WhiteClock "0:00:09"]
[BlackClock "0:00:49"]
[Board "23"]

1. d4 {[%clk 0:03:00]}  e6 {[%clk 0:02:57]} 2. e4 {[%clk 0:02:59]}  d5 {[%clk 0:02:55]} 3. Nc3 {[%clk 0:02:59]}  Bb4 {[%clk 0:02:54]} 4. Ne2 {[%clk 0:02:59]}  dxe4 {[%clk 0:02:53]} 5. a3 {[%clk 0:02:59]}  Bxc3+ {[%clk 0:02:48]} 6. Nxc3 {[%clk 0:02:59]}  Nc6 {[%clk 0:02:49]} 7. Bb5 {[%clk 0:02:57]}  Ne7 {[%clk 0:02:41]} 8. Nxe4 {[%clk 0:02:55]}  O-O {[%clk 0:02:37]} 9. c3 {[%clk 0:02:49]}  e5 {[%clk 0:02:37]} 10. dxe5 {[%clk 0:02:31]}  Qxd1+ {[%clk 0:02:36]} 11. Kxd1 {[%clk 0:02:32]}  Nxe5 {[%clk 0:02:37]} 12. f3 {[%clk 0:02:27]}  Bf5 {[%clk 0:02:29]} 13. Bf4 {[%clk 0:02:25]}  N7g6 {[%clk 0:02:28]} 14. Bg3 {[%clk 0:02:25]}  Bxe4 {[%clk 0:02:25]} 15. fxe4 {[%clk 0:02:26]}  Rad8+ {[%clk 0:02:19]} 16. Kc2 {[%clk 0:02:26]}  f6 {[%clk 0:02:19]} 17. Rad1 {[%clk 0:02:22]}  Kf7 {[%clk 0:02:19]} 18. b4 {[%clk 0:02:10]}  Ke6 {[%clk 0:02:17]} 19. Ba4 {[%clk 0:02:04]}  h5 {[%clk 0:02:12]} 20. Bb3+ {[%clk 0:02:04]}  Ke7 {[%clk 0:02:12]} 21. h3 {[%clk 0:02:03]}  h4 {[%clk 0:02:09]} 22. Bh2 {[%clk 0:02:02]}  Rxd1 {[%clk 0:02:05]} 23. Rxd1 {[%clk 0:02:01]}  Rd8 {[%clk 0:02:05]} 24. Rxd8 {[%clk 0:02:01]}  Kxd8 {[%clk 0:02:06]} 25. Kd2 {[%clk 0:01:53]}  Ke7 {[%clk 0:02:02]} 26. Ke3 {[%clk 0:01:53]}  b5 {[%clk 0:01:58]} 27. a4 {[%clk 0:01:50]}  a6 {[%clk 0:01:58]} 28. a5 {[%clk 0:01:41]}  Kd6 {[%clk 0:01:57]} 29. Bf7 {[%clk 0:01:33]}  Ne7 {[%clk 0:01:53]} 30. Be8 {[%clk 0:01:18]}  c5 {[%clk 0:01:49]} 31. g3 {[%clk 0:00:56]}  hxg3 {[%clk 0:01:44]} 32. Bxg3 {[%clk 0:00:57]}  g5 {[%clk 0:01:44]} 33. h4 {[%clk 0:00:46]}  gxh4 {[%clk 0:01:42]} 34. Bxh4 {[%clk 0:00:47]}  cxb4 {[%clk 0:01:35]} 35. cxb4 {[%clk 0:00:45]}  Ke6 {[%clk 0:01:13]} 36. Kd4 {[%clk 0:00:39]}  Nf3+ {[%clk 0:01:12]} 37. Kc5 {[%clk 0:00:37]}  Nxh4 {[%clk 0:01:12]} 38. Kb6 {[%clk 0:00:26]}  Nc8+ {[%clk 0:01:08]} 39. Kxa6 {[%clk 0:00:25]}  Nd6 {[%clk 0:01:09]} 40. Bxb5 {[%clk 0:00:21]}  Nxe4 {[%clk 0:01:09]} 41. Bc6 {[%clk 0:00:17]}  Nc3 {[%clk 0:01:06]} 42. b5 {[%clk 0:00:16]}  Kd6 {[%clk 0:01:05]} 43. Bh1 {[%clk 0:00:15]}  Nf5 {[%clk 0:00:53]} 44. b6 {[%clk 0:00:15]}  Ne7 {[%clk 0:00:51]} 45. Ka7 {[%clk 0:00:13]}  Nc6+ {[%clk 0:00:50]} 46. Ka8 {[%clk 0:00:13]}  Nxa5 {[%clk 0:00:50]} 47. b7 {[%clk 0:00:14]}  Nxb7 {[%clk 0:00:50]} 48. Kxb7 {[%clk 0:00:14]}  Ke5 {[%clk 0:00:49]} 49. Kc6 {[%clk 0:00:15]}  Ne4 {[%clk 0:00:49]} 50. Kb5 {[%clk 0:00:14]}  Kd4 {[%clk 0:00:49]} 51. Kc6 {[%clk 0:00:13]}  f5 {[%clk 0:00:49]} 52. Kd7 {[%clk 0:00:13]}  Ke3 {[%clk 0:00:49]} 53. Ke6 {[%clk 0:00:14]}  f4 {[%clk 0:00:49]} 54. Kf5 {[%clk 0:00:09]}  Ng3+ {[%clk 0:00:49]} 0-1


[Site "https://www.chess.com"]

[Event "Titled Tuesday Blitz November 14 Late 2023"]
[White "Jovic, Stanoje"]
[Black "Sivakumar, Shaaketh"]
[WhiteFideId "905020"]
[BlackFideId "30940176"]
[WhiteElo "2554"]
[BlackElo "2653"]
[Result "1-0"]
[Round "9"]
[TimeControl "180+1"]
[Date "2023.11.14"]
[WhiteClock "0:00:08"]
[BlackClock "0:00:05"]
[Board "24"]

1. c4 {[%clk 0:03:00]}  e6 {[%clk 0:02:47]} 2. g3 {[%clk 0:02:59]}  Nf6 {[%clk 0:02:39]} 3. Bg2 {[%clk 0:02:59]}  c5 {[%clk 0:02:38]} 4. Nf3 {[%clk 0:02:58]}  Nc6 {[%clk 0:02:38]} 5. O-O {[%clk 0:02:58]}  b6 {[%clk 0:02:38]} 6. Re1 {[%clk 0:02:57]}  Bb7 {[%clk 0:02:39]} 7. e4 {[%clk 0:02:56]}  d6 {[%clk 0:02:39]} 8. Nc3 {[%clk 0:02:51]}  e5 {[%clk 0:02:39]} 9. d3 {[%clk 0:02:47]}  g6 {[%clk 0:02:38]} 10. Bg5 {[%clk 0:02:46]}  h6 {[%clk 0:02:38]} 11. Bxf6 {[%clk 0:02:43]}  Qxf6 {[%clk 0:02:39]} 12. Nd5 {[%clk 0:02:43]}  Qd8 {[%clk 0:02:40]} 13. a3 {[%clk 0:02:43]}  Bg7 {[%clk 0:02:38]} 14. b4 {[%clk 0:02:43]}  O-O {[%clk 0:02:38]} 15. b5 {[%clk 0:02:40]}  Ne7 {[%clk 0:02:29]} 16. a4 {[%clk 0:02:39]}  Nxd5 {[%clk 0:02:28]} 17. cxd5 {[%clk 0:02:38]}  a6 {[%clk 0:02:28]} 18. Nd2 {[%clk 0:02:36]}  f5 {[%clk 0:02:21]} 19. Nc4 {[%clk 0:02:34]}  f4 {[%clk 0:02:22]} 20. Bh3 {[%clk 0:02:32]}  Rb8 {[%clk 0:02:00]} 21. Be6+ {[%clk 0:02:31]}  Kh7 {[%clk 0:01:58]} 22. f3 {[%clk 0:02:27]}  Qg5 {[%clk 0:01:54]} 23. Kg2 {[%clk 0:02:19]}  fxg3 {[%clk 0:01:46]} 24. hxg3 {[%clk 0:02:18]}  Rf6 {[%clk 0:01:24]} 25. Qe2 {[%clk 0:01:54]}  Rbf8 {[%clk 0:01:23]} 26. Rf1 {[%clk 0:01:54]}  h5 {[%clk 0:01:24]} 27. Nxb6 {[%clk 0:01:45]}  h4 {[%clk 0:01:23]} 28. g4 {[%clk 0:01:43]}  Qf4 {[%clk 0:01:21]} 29. Qf2 {[%clk 0:01:37]}  g5 {[%clk 0:01:18]} 30. Rh1 {[%clk 0:01:28]}  Qxf3+ {[%clk 0:01:16]} 31. Qxf3 {[%clk 0:01:28]}  Rxf3 {[%clk 0:01:17]} 32. Bf5+ {[%clk 0:01:26]}  R8xf5 {[%clk 0:01:17]} 33. gxf5 {[%clk 0:01:26]}  Rxd3 {[%clk 0:01:16]} 34. Nd7 {[%clk 0:01:12]}  Bc8 {[%clk 0:01:09]} 35. Nb6 {[%clk 0:01:06]}  Bb7 {[%clk 0:01:09]} 36. Rh3 {[%clk 0:01:00]}  Rd2+ {[%clk 0:01:07]} 37. Kg1 {[%clk 0:00:57]}  Re2 {[%clk 0:00:55]} 38. Nc4 {[%clk 0:00:52]}  Bf8 {[%clk 0:00:53]} 39. Re3 {[%clk 0:00:46]}  Rc2 {[%clk 0:00:53]} 40. Na5 {[%clk 0:00:44]}  Bc8 {[%clk 0:00:50]} 41. Nc6 {[%clk 0:00:38]}  g4 {[%clk 0:00:50]} 42. Rb1 {[%clk 0:00:30]}  Bh6 {[%clk 0:00:48]} 43. Ra3 {[%clk 0:00:24]}  g3 {[%clk 0:00:48]} 44. b6 {[%clk 0:00:21]}  c4 {[%clk 0:00:39]} 45. b7 {[%clk 0:00:20]}  c3 {[%clk 0:00:32]} 46. Rxc3 {[%clk 0:00:14]}  Rxc3 {[%clk 0:00:20]} 47. bxc8=Q {[%clk 0:00:13]}  h3 {[%clk 0:00:17]} 48. Qd7+ {[%clk 0:00:12]}  Bg7 {[%clk 0:00:16]} 49. f6 {[%clk 0:00:10]}  Kh6 {[%clk 0:00:16]} 50. Qxg7+ {[%clk 0:00:09]}  Kh5 {[%clk 0:00:16]} 51. f7 {[%clk 0:00:09]}  Rc2 {[%clk 0:00:07]} 52. f8=Q {[%clk 0:00:08]}  Rg2+ {[%clk 0:00:07]} 53. Kf1 {[%clk 0:00:08]}  Rf2+ {[%clk 0:00:06]} 54. Qxf2 {[%clk 0:00:08]}  gxf2 {[%clk 0:00:06]} 55. Kxf2 {[%clk 0:00:08]}  a5 {[%clk 0:00:06]} 56. Rh1 {[%clk 0:00:08]}  Kh4 {[%clk 0:00:05]} 57. Qg3+ {[%clk 0:00:08]} 1-0


[Site "https://www.chess.com"]

[Event "Titled Tuesday Blitz November 14 Late 2023"]
[White "Ibarra Jerez, Jose Carlos"]
[Black "Ambartsumova, Karina"]
[WhiteFideId "2226332"]
[BlackFideId "4166299"]
[WhiteElo "2939"]
[BlackElo "2649"]
[Result "1-0"]
[Round "9"]
[TimeControl "180+1"]
[Date "2023.11.14"]
[WhiteClock "0:00:57"]
[BlackClock "0:00:17"]
[Board "25"]

1. e4 {[%clk 0:03:00]}  e5 {[%clk 0:02:59]} 2. Nf3 {[%clk 0:03:00]}  Nc6 {[%clk 0:03:00]} 3. Bb5 {[%clk 0:02:57]}  Nf6 {[%clk 0:02:59]} 4. O-O {[%clk 0:02:56]}  Nxe4 {[%clk 0:02:58]} 5. d4 {[%clk 0:02:57]}  Nd6 {[%clk 0:02:58]} 6. dxe5 {[%clk 0:02:57]}  Nxb5 {[%clk 0:02:57]} 7. a4 {[%clk 0:02:57]}  Nbd4 {[%clk 0:02:57]} 8. Nxd4 {[%clk 0:02:58]}  Nxd4 {[%clk 0:02:57]} 9. Qxd4 {[%clk 0:02:58]}  d6 {[%clk 0:02:57]} 10. Re1 {[%clk 0:02:47]}  dxe5 {[%clk 0:02:51]} 11. Qxe5+ {[%clk 0:02:45]}  Be6 {[%clk 0:02:50]} 12. Qb5+ {[%clk 0:02:38]}  c6 {[%clk 0:02:13]} 13. Qxb7 {[%clk 0:02:38]}  Rc8 {[%clk 0:01:55]} 14. Qxa7 {[%clk 0:02:29]}  Bd6 {[%clk 0:01:55]} 15. Nc3 {[%clk 0:02:26]}  O-O {[%clk 0:01:48]} 16. Ne4 {[%clk 0:02:12]}  Bb8 {[%clk 0:01:41]} 17. Qc5 {[%clk 0:02:10]}  Bd5 {[%clk 0:01:35]} 18. Bg5 {[%clk 0:02:01]}  Qc7 {[%clk 0:01:30]} 19. g3 {[%clk 0:02:01]}  Rfe8 {[%clk 0:01:21]} 20. Nc3 {[%clk 0:01:48]}  Bf3 {[%clk 0:01:20]} 21. Qf5 {[%clk 0:01:44]}  Bd5 {[%clk 0:00:58]} 22. Nxd5 {[%clk 0:01:31]}  cxd5 {[%clk 0:00:59]} 23. Qxd5 {[%clk 0:01:29]}  Qxc2 {[%clk 0:00:58]} 24. Qd7 {[%clk 0:01:25]}  Rxe1+ {[%clk 0:00:20]} 25. Rxe1 {[%clk 0:01:24]}  Rf8 {[%clk 0:00:18]} 26. Be7 {[%clk 0:01:16]}  Qc8 {[%clk 0:00:18]} 27. Rd1 {[%clk 0:01:10]}  Qxd7 {[%clk 0:00:16]} 28. Rxd7 {[%clk 0:01:10]}  Re8 {[%clk 0:00:17]} 29. Rd8 {[%clk 0:01:10]}  Rxd8 {[%clk 0:00:17]} 30. Bxd8 {[%clk 0:01:11]}  Kf8 {[%clk 0:00:18]} 31. Bb6 {[%clk 0:01:10]}  Ke8 {[%clk 0:00:18]} 32. a5 {[%clk 0:00:58]}  Ba7 {[%clk 0:00:17]} 33. Bxa7 {[%clk 0:00:57]} 1-0


[Site "https://www.chess.com"]

[Event "Titled Tuesday Blitz November 14 Late 2023"]
[White "Shapiro, Viktor"]
[Black "Schnaider, Ilan"]
[WhiteFideId "4175700"]
[BlackFideId "169013"]
[WhiteElo "2563"]
[BlackElo "2719"]
[Result "0-1"]
[Round "9"]
[TimeControl "180+1"]
[Date "2023.11.14"]
[WhiteClock "0:00:52"]
[BlackClock "0:01:36"]
[Board "30"]

1. c4 {[%clk 0:03:00]}  Nf6 {[%clk 0:02:59]} 2. Nc3 {[%clk 0:03:00]}  g6 {[%clk 0:03:00]} 3. g3 {[%clk 0:03:01]}  Bg7 {[%clk 0:03:00]} 4. Bg2 {[%clk 0:03:01]}  O-O {[%clk 0:03:00]} 5. Nf3 {[%clk 0:03:01]}  Nc6 {[%clk 0:03:01]} 6. O-O {[%clk 0:02:58]}  d5 {[%clk 0:03:01]} 7. cxd5 {[%clk 0:02:54]}  Nxd5 {[%clk 0:03:02]} 8. d3 {[%clk 0:02:54]}  Bg4 {[%clk 0:03:00]} 9. Bd2 {[%clk 0:02:53]}  e5 {[%clk 0:02:55]} 10. h3 {[%clk 0:02:52]}  Bxf3 {[%clk 0:02:54]} 11. Bxf3 {[%clk 0:02:51]}  Nb6 {[%clk 0:02:51]} 12. Rc1 {[%clk 0:02:49]}  Qd7 {[%clk 0:02:51]} 13. Bg2 {[%clk 0:02:48]}  f5 {[%clk 0:02:48]} 14. a3 {[%clk 0:02:45]}  Rad8 {[%clk 0:02:45]} 15. b4 {[%clk 0:02:45]}  e4 {[%clk 0:02:43]} 16. dxe4 {[%clk 0:02:41]}  Qxd2 {[%clk 0:02:37]} 17. Qb3+ {[%clk 0:02:25]}  Kh8 {[%clk 0:02:36]} 18. Rfd1 {[%clk 0:02:25]}  Qg5 {[%clk 0:02:34]} 19. exf5 {[%clk 0:02:19]}  Qxf5 {[%clk 0:02:32]} 20. Ne4 {[%clk 0:02:11]}  Nd4 {[%clk 0:02:29]} 21. Qe3 {[%clk 0:02:06]}  Nd5 {[%clk 0:02:29]} 22. Qd3 {[%clk 0:02:00]}  Nf6 {[%clk 0:02:26]} 23. g4 {[%clk 0:01:52]}  Qe5 {[%clk 0:02:19]} 24. Ng3 {[%clk 0:01:41]}  Nd5 {[%clk 0:02:04]} 25. Rc5 {[%clk 0:01:26]}  Nf4 {[%clk 0:01:48]} 26. Rxe5 {[%clk 0:01:26]}  Nxd3 {[%clk 0:01:48]} 27. Re7 {[%clk 0:01:23]}  Nxf2 {[%clk 0:01:45]} 28. Rf1 {[%clk 0:01:13]}  Nc6 {[%clk 0:01:43]} 29. Rxg7 {[%clk 0:01:10]}  Nxh3+ {[%clk 0:01:39]} 30. Bxh3 {[%clk 0:01:10]}  Rxf1+ {[%clk 0:01:39]} 31. Bxf1 {[%clk 0:01:07]}  Kxg7 {[%clk 0:01:40]} 32. e3 {[%clk 0:01:05]}  Ne5 {[%clk 0:01:39]} 33. Be2 {[%clk 0:01:04]}  Rd2 {[%clk 0:01:39]} 34. Kf1 {[%clk 0:01:03]}  Ra2 {[%clk 0:01:39]} 35. Ne4 {[%clk 0:01:02]}  Rxa3 {[%clk 0:01:39]} 36. Kf2 {[%clk 0:01:02]}  Ra2 {[%clk 0:01:39]} 37. Ke1 {[%clk 0:00:59]}  b6 {[%clk 0:01:38]} 38. Nc3 {[%clk 0:00:58]}  Ra1+ {[%clk 0:01:37]} 39. Kd2 {[%clk 0:00:58]}  a5 {[%clk 0:01:37]} 40. bxa5 {[%clk 0:00:57]}  bxa5 {[%clk 0:01:38]} 41. Nd5 {[%clk 0:00:57]}  c6 {[%clk 0:01:36]} 42. Ne7 {[%clk 0:00:52]}  a4 {[%clk 0:01:36]} 0-1


[Site "https://www.chess.com"]

[Event "Titled Tuesday Blitz November 14 Late 2023"]
[White "Hambleton, Aman"]
[Black "JackRodgers"]
[WhiteFideId "2606577"]
[WhiteElo "2714"]
[BlackElo "2542"]
[Result "1-0"]
[Round "9"]
[TimeControl "180+1"]
[Date "2023.11.14"]
[WhiteClock "0:02:22"]
[BlackClock "0:01:26"]
[Board "31"]

1. d4 {[%clk 0:03:00]}  Nf6 {[%clk 0:02:59]} 2. Bf4 {[%clk 0:03:00]}  d6 {[%clk 0:02:58]} 3. e3 {[%clk 0:03:01]}  g6 {[%clk 0:02:58]} 4. h3 {[%clk 0:03:01]}  Bg7 {[%clk 0:02:58]} 5. Nf3 {[%clk 0:03:02]}  b6 {[%clk 0:02:59]} 6. Be2 {[%clk 0:03:03]}  Bb7 {[%clk 0:02:59]} 7. Bh2 {[%clk 0:03:04]}  c5 {[%clk 0:03:00]} 8. c3 {[%clk 0:03:04]}  O-O {[%clk 0:03:00]} 9. O-O {[%clk 0:03:04]}  Re8 {[%clk 0:02:58]} 10. a4 {[%clk 0:03:05]}  a6 {[%clk 0:02:58]} 11. Re1 {[%clk 0:03:05]}  Nbd7 {[%clk 0:02:59]} 12. Nbd2 {[%clk 0:03:05]}  e5 {[%clk 0:02:58]} 13. dxe5 {[%clk 0:03:06]}  dxe5 {[%clk 0:02:54]} 14. Nc4 {[%clk 0:03:06]}  e4 {[%clk 0:02:45]} 15. Nfd2 {[%clk 0:03:03]}  Re6 {[%clk 0:02:35]} 16. Nd6 {[%clk 0:03:00]}  Bc6 {[%clk 0:02:30]} 17. Bc4 {[%clk 0:02:58]}  Bd5 {[%clk 0:02:22]} 18. Bxd5 {[%clk 0:02:55]}  Nxd5 {[%clk 0:02:23]} 19. N2xe4 {[%clk 0:02:55]}  N7f6 {[%clk 0:02:13]} 20. Nxf7 {[%clk 0:02:31]}  Kxf7 {[%clk 0:02:07]} 21. Ng5+ {[%clk 0:02:31]}  Ke7 {[%clk 0:02:07]} 22. Nxe6 {[%clk 0:02:32]}  Kxe6 {[%clk 0:02:08]} 23. e4 {[%clk 0:02:33]}  Nc7 {[%clk 0:01:51]} 24. Qb3+ {[%clk 0:02:32]}  Ke7 {[%clk 0:01:51]} 25. Rad1 {[%clk 0:02:32]}  Qb8 {[%clk 0:01:48]} 26. Bd6+ {[%clk 0:02:32]}  Ke8 {[%clk 0:01:44]} 27. e5 {[%clk 0:02:25]}  Nd7 {[%clk 0:01:28]} 28. Qg8+ {[%clk 0:02:21]}  Bf8 {[%clk 0:01:26]} 29. e6 {[%clk 0:02:22]} 1-0


[Site "https://www.chess.com"]

[Event "Titled Tuesday Blitz November 14 Late 2023"]
[White "Adewumi, Tanitoluwa"]
[Black "Willy, Stephen"]
[WhiteFideId "30966396"]
[BlackFideId "30981468"]
[WhiteElo "2630"]
[BlackElo "2485"]
[Result "0-1"]
[Round "9"]
[TimeControl "180+1"]
[Date "2023.11.14"]
[WhiteClock "0:00:32"]
[BlackClock "0:01:51"]
[Board "34"]

1. Nf3 {[%clk 0:02:06]}  c5 {[%clk 0:02:59]} 2. e4 {[%clk 0:01:58]}  a6 {[%clk 0:02:53]} 3. b3 {[%clk 0:01:53]}  Nc6 {[%clk 0:02:48]} 4. Bb2 {[%clk 0:01:52]}  Nf6 {[%clk 0:02:48]} 5. e5 {[%clk 0:01:48]}  Nd5 {[%clk 0:02:48]} 6. Nc3 {[%clk 0:01:46]}  e6 {[%clk 0:02:42]} 7. Ne4 {[%clk 0:01:43]}  f5 {[%clk 0:02:42]} 8. exf6 {[%clk 0:01:42]}  Nxf6 {[%clk 0:02:37]} 9. Nxf6+ {[%clk 0:01:43]}  gxf6 {[%clk 0:02:38]} 10. d4 {[%clk 0:01:43]}  cxd4 {[%clk 0:02:21]} 11. Nxd4 {[%clk 0:01:42]}  Qa5+ {[%clk 0:02:22]} 12. c3 {[%clk 0:01:39]}  Ba3 {[%clk 0:02:08]} 13. Bxa3 {[%clk 0:01:06]}  Qxc3+ {[%clk 0:02:06]} 14. Qd2 {[%clk 0:00:44]}  Qxa1+ {[%clk 0:02:05]} 15. Bc1 {[%clk 0:00:45]}  Qxd4 {[%clk 0:02:01]} 16. Bd3 {[%clk 0:00:32]}  Qb4 {[%clk 0:01:51]} 0-1


[Site "https://www.chess.com"]